fUSD/lending_fUSD_20260227
["ID","MTS","AMOUNT","RATE_DAILY","PERIOD"]
[406801778,1772203862663,-242.130723,0.00041096,120]
[406801779,1772203862673,-193.817179,0.00041096,120]
[406801780,1772203862682,-193.817179,0.00041096,120]
[406801781,1772203862691,-242.130723,0.00041096,120]
[406801782,1772203862700,-242.130723,0.00041096,120]
[406801783,1772203862712,-193.817179,0.00041096,120]
[406801784,1772203862721,-242.130723,0.00041096,120]
[406801785,1772203862731,-193.817179,0.00041096,120]
[406801786,1772203862740,-193.817179,0.00041096,120]
[406801787,1772203862749,-242.130723,0.00041096,120]
[406801788,1772203862759,-193.817179,0.00041096,120]
[406801789,1772203862769,-193.817179,0.00041096,120]
[406801790,1772203862778,-242.130723,0.00041096,120]
[406801791,1772203862787,-193.817171,0.00041096,120]
[406801792,1772203862796,-242.130723,0.00041096,120]
[406801793,1772203862807,-242.130723,0.00041096,120]
[406801794,1772203862816,-242.130723,0.00041096,120]
[406801795,1772203862826,-242.130723,0.00041096,120]
[406801796,1772203862836,-242.130723,0.00041096,120]
[406801797,1772203862845,-242.130723,0.00041096,120]
[406801798,1772203862854,-242.130723,0.00041096,120]
[406801799,1772203862864,-242.130723,0.00041096,120]
[406801800,1772203862873,-242.130723,0.00041096,120]
[406801801,1772203862884,-242.130718,0.00041096,120]
[406801802,1772203862894,-151.0,0.00041096,120]
[406801803,1772203862903,-151.0,0.00041096,120]
[406801804,1772203862914,-151.0,0.00041096,120]
[406801805,1772203862924,-151.0,0.00041096,120]
[406801806,1772203862933,-151.0,0.00041096,120]
[406801807,1772203862943,-151.0,0.00041096,120]
[406801808,1772203862953,-151.0,0.00041096,120]
[406801809,1772203862962,-151.0,0.00041096,120]
[406801810,1772203862971,-151.0,0.00041096,120]
[406801811,1772203862981,-151.0,0.00041096,120]
[406801812,1772203862991,-151.0,0.00041096,120]
[406801813,1772203863000,-151.0,0.00041096,120]
[406801814,1772203863009,-151.0,0.00041096,120]
[406801815,1772203863018,-151.0,0.00041096,120]
[406801816,1772203863027,-151.0,0.00041096,120]
[406801817,1772203863037,-320.135809,0.00041096,120]
[406801818,1772203863046,-320.135809,0.00041096,120]
[406801819,1772203863055,-320.135809,0.00041096,120]
[406801820,1772203863064,-320.135809,0.00041096,120]
[406801821,1772203863074,-320.135809,0.00041096,120]
[406801822,1772203863083,-320.135809,0.00041096,120]
[406801823,1772203863093,-320.135809,0.00041096,120]
[406801824,1772203863102,-320.135809,0.00041096,120]
[406801825,1772203863111,-320.135809,0.00041096,120]
[406801826,1772203863120,-320.135809,0.00041096,120]
[406801827,1772203863130,-320.135809,0.00041096,120]
[406801828,1772203863139,-320.135809,0.00041096,120]
[406801829,1772203863148,-320.135809,0.00041096,120]
[406801830,1772203863157,-320.135809,0.00041096,120]
[406801831,1772203863168,-320.135809,0.00041096,120]
[406801832,1772203863178,-320.135809,0.00041096,120]
[406801833,1772203863187,-320.135809,0.00041096,120]
[406801834,1772203863196,-320.135809,0.00041096,120]
[406801835,1772203863205,-320.135809,0.00041096,120]
[406801836,1772203863214,-320.135815,0.00041096,120]
[406801837,1772203863224,-151.0,0.00041096,120]
[406801838,1772203863233,-235.543547,0.00041096,120]
[406801839,1772203863348,-226.677043,0.00041096,120]
[406801840,1772203863358,-151.000011,0.00041096,120]
[406801841,1772203863367,-254.28375,0.00041096,120]
[406801842,1772203863376,-151.0,0.00041096,120]
[406801843,1772203863386,-168.257733,0.00041096,120]
[406801844,1772203863395,-154.504553,0.00041096,120]
[406801845,1772203863405,-632.203144,0.00041096,120]
[406801846,1772203863418,-632.203144,0.00041096,120]
[406801847,1772203863427,-632.203144,0.00041096,120]
[406801848,1772203863440,-632.203144,0.00041096,120]
[406801849,1772203863451,-632.203144,0.00041096,120]
[406801850,1772203863460,-632.203144,0.00041096,120]
[406801851,1772203863469,-632.203144,0.00041096,120]
[406801852,1772203863480,-632.203144,0.00041096,120]
[406801853,1772203863490,-809.529908,0.00041096,14]
[406801854,1772203863499,-632.203144,0.00041096,120]
[406801855,1772203863509,-809.529908,0.00041096,14]
[406801856,1772203863519,-632.203144,0.00041096,120]
[406801857,1772203863528,-809.529908,0.00041096,14]
[406801858,1772203863537,-632.203144,0.00041096,120]
[406801859,1772203863546,-809.529908,0.00041096,14]
[406801860,1772203863556,-632.203144,0.00041096,120]
[406801861,1772203863565,-809.529908,0.00041096,14]
[406801862,1772203863575,-809.529908,0.00041096,14]
[406801863,1772203863585,-632.203144,0.00041096,120]
[406801864,1772203863594,-809.529908,0.00041096,14]
[406801865,1772203863604,-632.203144,0.00041096,120]
[406801866,1772203863614,-809.529908,0.00041096,14]
[406801867,1772203863624,-424.812769,0.00041096,120]
[406801868,1772203863633,-809.529908,0.00041096,14]
[406801869,1772203863642,-632.203144,0.00041096,120]
[406801870,1772203863652,-424.812769,0.00041096,120]
[406801871,1772203863664,-809.529908,0.00041096,14]
[406801872,1772203863674,-632.203144,0.00041096,120]
[406801873,1772203863685,-1172.480293,0.00041096,120]
[406801874,1772203863694,-809.529908,0.00041096,14]
[406801875,1772203863704,-424.812769,0.00041096,120]
[406801876,1772203863714,-1172.480293,0.00041096,120]
[406801877,1772203863725,-632.203144,0.00041096,120]
[406801878,1772203863735,-809.529908,0.00041096,14]
[406801879,1772203863744,-424.812769,0.00041096,120]
[406801880,1772203863755,-1172.480293,0.00041096,120]
[406801881,1772203863766,-632.203144,0.00041096,120]
[406801882,1772203863776,-424.812769,0.00041096,120]
[406801883,1772203863785,-1172.480293,0.00041096,120]
[406801884,1772203863795,-809.529908,0.00041096,14]
[406801885,1772203863804,-632.203144,0.00041096,120]
[406801886,1772203863813,-1172.480293,0.00041096,120]
[406801887,1772203863822,-809.529908,0.00041096,14]
[406801888,1772203863831,-424.812769,0.00041096,120]
[406801889,1772203863842,-632.203142,0.00041096,120]
[406801890,1772203863853,-1172.480293,0.00041096,120]
[406801891,1772203863864,-809.529908,0.00041096,14]
[406801892,1772203863874,-424.812769,0.00041096,120]
[406801893,1772203863884,-1172.480293,0.00041096,120]
[406801894,1772203863893,-809.529908,0.00041096,14]
[406801895,1772203863905,-424.812769,0.00041096,120]
[406801896,1772203863916,-1172.480293,0.00041096,120]
[406801897,1772203863926,-809.529908,0.00041096,14]
[406801898,1772203863935,-424.812769,0.00041096,120]
[406801899,1772203863946,-1172.480293,0.00041096,120]
[406801900,1772203863956,-809.529908,0.00041096,14]
[406801901,1772203863965,-174.8858,0.00041096,120]
[406801902,1772203863975,-1172.480293,0.00041096,120]
[406801903,1772203863985,-809.529908,0.00041096,14]
[406801904,1772203863995,-424.812769,0.00041096,120]
[406801905,1772203864004,-1172.480293,0.00041096,120]
[406801906,1772203864013,-424.812769,0.00041096,120]
[406801907,1772203864023,-809.529902,0.00041096,14]
[406801908,1772203864032,-1172.480293,0.00041096,120]
[406801909,1772203864043,-424.812769,0.00041096,120]
[406801910,1772203864053,-1172.480293,0.00041096,120]
[406801911,1772203864062,-424.812769,0.00041096,120]
[406801912,1772203864072,-424.812769,0.00041096,120]
[406801913,1772203864083,-1172.480293,0.00041096,120]
[406801914,1772203864092,-424.812769,0.00041096,120]
[406801915,1772203864102,-1172.480293,0.00041096,120]
[406801916,1772203864112,-424.812769,0.00041096,120]
[406801917,1772203864122,-1172.480293,0.00041096,120]
[406801918,1772203864132,-424.812769,0.00041096,120]
[406801919,1772203864142,-1172.480293,0.00041096,120]
[406801920,1772203864151,-424.812769,0.00041096,120]
[406801921,1772203864162,-1172.480293,0.00041096,120]
[406801922,1772203864173,-424.812769,0.00041096,120]
[406801923,1772203864183,-1172.480293,0.00041096,120]
[406801924,1772203864193,-424.812775,0.00041096,120]
[406801925,1772203864203,-1172.48029737,0.00041096,120]
[406801926,1772203864213,-151.0,0.00041096,120]
[406801927,1772203864223,-151.0,0.00041096,120]
[406801928,1772203864233,-151.0,0.00041096,120]
[406801929,1772203864243,-151.0,0.00041096,120]
[406801930,1772203864253,-178.209275,0.00041096,90]
[406801931,1772203864263,-178.209275,0.00041096,90]
[406801932,1772203864272,-178.209275,0.00041096,90]
[406801933,1772203864282,-178.209275,0.00041096,90]
[406801934,1772203864291,-178.209275,0.00041096,90]
[406801935,1772203864301,-178.209275,0.00041096,90]
[406801936,1772203864312,-178.209275,0.00041096,90]
[406801937,1772203864321,-178.209275,0.00041096,90]
[406801938,1772203864331,-178.209275,0.00041096,90]
[406801939,1772203864341,-178.209275,0.00041096,90]
[406801940,1772203864351,-178.209275,0.00041096,90]
[406801941,1772203864361,-178.209275,0.00041096,90]
[406801942,1772203864370,-178.209275,0.00041096,90]
[406801943,1772203864380,-178.209275,0.00041096,90]
[406801944,1772203864389,-178.209275,0.00041096,90]
[406801945,1772203864399,-178.209275,0.00041096,90]
[406801946,1772203864412,-178.209275,0.00041096,90]
[406801947,1772203864424,-178.209275,0.00041096,90]
[406801948,1772203864433,-178.209275,0.00041096,90]
[406801949,1772203864442,-178.20928,0.00041096,90]
[406801950,1772203864453,-520.462791,0.00041096,120]
[406801951,1772203864462,-520.462791,0.00041096,120]
[406801952,1772203864471,-520.462791,0.00041096,120]
[406801953,1772203864481,-520.462791,0.00041096,120]
[406801954,1772203864493,-520.462791,0.00041096,120]
[406801955,1772203864503,-520.462791,0.00041096,120]
[406801956,1772203864513,-520.462791,0.00041096,120]
[406801957,1772203864522,-520.462791,0.00041096,120]
[406801958,1772203864531,-520.462791,0.00041096,120]
[406801959,1772203864541,-520.462791,0.00041096,120]
[406801960,1772203864550,-520.462791,0.00041096,120]
[406801961,1772203864559,-520.462791,0.00041096,120]
[406801962,1772203864569,-520.462791,0.00041096,120]
[406801963,1772203864579,-151.0,0.00041096,120]
[406801964,1772203864588,-520.462791,0.00041096,120]
[406801965,1772203864598,-520.462791,0.00041096,120]
[406801966,1772203864608,-520.462791,0.00041096,120]
[406801967,1772203864618,-520.462791,0.00041096,120]
[406801968,1772203864628,-520.462791,0.00041096,120]
[406801969,1772203864638,-520.462791,0.00041096,120]
[406801970,1772203864648,-520.46279,0.00041096,120]
[406801971,1772203864658,-151.0,0.00041096,120]
[406801972,1772203864671,-151.0,0.00041096,120]
[406801973,1772203864680,-151.0,0.00041096,120]
[406801974,1772203864690,-151.0,0.00041096,120]
[406801975,1772203864699,-151.0,0.00041096,120]
[406801976,1772203864708,-151.0,0.00041096,120]
[406801977,1772203864717,-151.0,0.00041096,120]
[406801978,1772203864727,-151.0,0.00041096,120]
[406801979,1772203864736,-151.0,0.00041096,120]
[406801980,1772203864746,-151.0,0.00041096,120]
[406801981,1772203864756,-151.0,0.00041096,31]
[406801982,1772203864765,-151.0,0.00041096,120]
[406801983,1772203864775,-151.0,0.00041096,120]
[406801984,1772203864784,-151.0,0.00041096,120]
[406801985,1772203864794,-151.0,0.00041096,120]
[406801986,1772203864803,-151.0,0.00041096,120]
[406801987,1772203864813,-153.788964,0.00041096,120]
[406801988,1772203864823,-151.0,0.00041096,120]
[406801989,1772203864832,-151.0,0.00041096,120]
[406801990,1772203864842,-151.0,0.00041096,120]
[406801991,1772203864851,-154.269154,0.00041096,120]
[406801992,1772203864861,-5639.98,0.000411,30]
[406801993,1772203864871,-719.04747942,0.00041108,2]
[406801994,1772203864880,-22500.0,0.00041125,120]
[406801995,1772203864890,-22078.12,0.00041125,120]
[406801996,1772203864899,-22500.0,0.00041125,120]
[406801997,1772203864911,-12500.0,0.00041125,120]
[406801998,1772203864920,-15000.0,0.000412,120]
[406801999,1772203864929,-2223.12063345,0.0004123,5]
[406802000,1772203864938,-151.0,0.00041233,120]
[406802001,1772203864948,-500.0,0.0004126,2]
[406802002,1772203864957,-455.69291,0.00041288,30]
[406802003,1772203865082,-9208.96,0.00041369,3]
[406802004,1772203865092,-632.72,0.00041369,3]
[406802005,1772203865102,-844.0,0.0004137,120]
[406802006,1772203865112,-318.74,0.00041384,120]
[406802007,1772203865122,-845.0,0.00041422,11]
[406802008,1772203865132,-455.69291,0.00041488,30]
[406802009,1772203865141,-150.0,0.00041495,30]
[406802010,1772203865151,-150.0,0.00041495,30]
[406802011,1772203865162,-161.68352318,0.00041495,30]
[406802012,1772203865173,-293.08929833,0.00041495,30]
[406802013,1772203865183,-150.0,0.00041495,30]
[406802014,1772203865193,-150.0,0.00041495,30]
[406802015,1772203865203,-150.0,0.00041495,30]
[406802016,1772203865213,-150.0,0.00041495,30]
[406802017,1772203865223,-150.0,0.00041495,30]
[406802018,1772203865233,-150.0,0.00041495,30]
[406802019,1772203865243,-150.0,0.00041495,30]
[406802020,1772203865252,-150.0,0.00041495,30]
[406802021,1772203865262,-150.0,0.00041495,30]
[406802022,1772203865272,-150.0,0.00041495,30]
[406802023,1772203865281,-197.61807193,0.00041495,30]
[406802024,1772203865291,-856.45675791,0.00041497,2]
[406802025,1772203865301,-306.29679311,0.00041497,2]
[406802026,1772203865310,-852.28136836,0.00041497,2]
[406802027,1772203865320,-1565.26887382,0.00041497,2]
[406802028,1772203865329,-307.55492962,0.00041497,2]
[406802029,1772203865338,-501.67999999,0.00041497,2]
[406802030,1772203865348,-300.0,0.00041497,2]
[406802031,1772203865358,-459.19979016,0.00041497,2]
[406802032,1772203865367,-300.0,0.00041497,2]
[406802033,1772203865377,-371.72919772,0.00041497,2]
[406802034,1772203865386,-300.0,0.00041497,2]
[406802035,1772203865396,-300.0,0.00041497,2]
[406802036,1772203865410,-519.04834756,0.00041497,2]
[406802037,1772203865420,-306.51036434,0.00041497,2]
[406802038,1772203865429,-300.0,0.00041497,2]
[406802039,1772203865439,-300.0,0.00041497,2]
[406802040,1772203865450,-405.58612148,0.00041497,2]
[406802041,1772203865459,-300.0,0.00041497,2]
[406802042,1772203865469,-300.0,0.00041497,2]
[406802043,1772203865480,-1083.06069021,0.00041497,2]
[406802044,1772203865490,-300.0,0.00041497,2]
[406802045,1772203865500,-306.29679311,0.00041497,2]
[406802046,1772203865510,-856.45675791,0.00041497,2]
[406802047,1772203865520,-852.28136836,0.00041497,2]
[406802048,1772203865529,-1565.26887382,0.00041497,2]
[406802049,1772203865539,-307.55492962,0.00041497,2]
[406802050,1772203865548,-300.0,0.00041497,2]
[406802051,1772203865558,-459.19979016,0.00041497,2]
[406802052,1772203865567,-300.0,0.00041497,2]
[406802053,1772203865578,-371.72919772,0.00041497,2]
[406802054,1772203865587,-300.0,0.00041497,2]
[406802055,1772203865597,-300.0,0.00041497,2]
[406802056,1772203865606,-519.04834756,0.00041497,2]
[406802057,1772203865616,-306.51036434,0.00041497,2]
[406802058,1772203865626,-300.0,0.00041497,2]
[406802059,1772203865637,-300.0,0.00041497,2]
[406802060,1772203865647,-405.58612148,0.00041497,2]
[406802061,1772203865657,-300.0,0.00041497,2]
[406802062,1772203865672,-544.38112597,0.00041497,2]
[406802063,1772203865682,-1083.06069021,0.00041497,2]
[406802064,1772203865692,-514.77285851,0.00041497,2]
[406802065,1772203865702,-301.64332071,0.00041497,2]
[406802066,1772203865711,-856.45675791,0.00041497,2]
[406802067,1772203865720,-306.29679311,0.00041497,2]
[406802068,1772203865729,-852.28136836,0.00041497,2]
[406802069,1772203865740,-1565.26887382,0.00041497,2]
[406802070,1772203865750,-307.55492962,0.00041497,2]
[406802071,1772203865760,-300.0,0.00041497,2]
[406802072,1772203865773,-459.19979016,0.00041497,2]
[406802073,1772203865783,-300.0,0.00041497,2]
[406802074,1772203865792,-371.72919772,0.00041497,2]
[406802075,1772203865801,-300.0,0.00041497,2]
[406802076,1772203865811,-300.0,0.00041497,2]
[406802077,1772203865820,-300.0,0.00041497,2]
[406802078,1772203865830,-519.04834756,0.00041497,2]
[406802079,1772203865839,-306.51036434,0.00041497,2]
[406802080,1772203865854,-300.0,0.00041497,2]
[406802081,1772203865872,-300.0,0.00041497,2]
[406802082,1772203865892,-405.58612148,0.00041497,2]
[406802083,1772203865915,-300.0,0.00041497,2]
[406802084,1772203865930,-1083.06069021,0.00041497,2]
[406802085,1772203865950,-856.45675791,0.00041497,2]
[406802086,1772203865969,-306.29679311,0.00041497,2]
[406802087,1772203865988,-852.28136836,0.00041497,2]
[406802088,1772203866007,-1565.26887382,0.00041497,2]
[406802089,1772203866025,-307.55492962,0.00041497,2]
[406802090,1772203866045,-300.0,0.00041497,2]
[406802091,1772203866061,-459.19979016,0.00041497,2]
[406802092,1772203866081,-300.0,0.00041497,2]
[406802093,1772203866094,-371.72919772,0.00041497,2]
[406802094,1772203866113,-300.0,0.00041497,2]
[406802095,1772203866127,-300.0,0.00041497,2]
[406802096,1772203866141,-300.0,0.00041497,2]
[406802097,1772203866159,-519.04834756,0.00041497,2]
[406802098,1772203866176,-306.51036434,0.00041497,2]
[406802099,1772203866192,-335.40046824,0.00041497,2]
[406802100,1772203866208,-300.0,0.00041497,2]
[406802101,1772203866224,-405.58612148,0.00041497,2]
[406802102,1772203866239,-300.0,0.00041497,2]
[406802103,1772203866255,-1083.06069021,0.00041497,2]
[406802104,1772203866270,-856.45675791,0.00041497,2]
[406802105,1772203866285,-306.29679311,0.00041497,2]
[406802106,1772203866300,-852.28136836,0.00041497,2]
[406802107,1772203866316,-1563.26627392,0.00041497,2]
[406802108,1772203866332,-307.55492962,0.00041497,2]
[406802109,1772203866347,-300.0,0.00041497,2]
[406802110,1772203866362,-459.19979016,0.00041497,2]
[406802111,1772203866377,-300.0,0.00041497,2]
[406802112,1772203866392,-371.72919772,0.00041497,2]
[406802113,1772203866422,-300.0,0.00041497,2]
[406802114,1772203866439,-300.0,0.00041497,2]
[406802115,1772203866456,-519.04834756,0.00041497,2]
[406802116,1772203866473,-306.51036434,0.00041497,2]
[406802117,1772203866491,-300.0,0.00041497,2]
[406802118,1772203866508,-398.12373645,0.00041497,2]
[406802119,1772203866524,-300.0,0.00041497,2]
[406802120,1772203866540,-1083.06069021,0.00041497,2]
[406802121,1772203866555,-856.45675791,0.00041497,2]
[406802122,1772203866571,-306.29679311,0.00041497,2]
[406802123,1772203866585,-852.28136836,0.00041497,2]
[406802124,1772203866601,-307.55492962,0.00041497,2]
[406802125,1772203866616,-300.0,0.00041497,2]
[406802126,1772203866631,-459.19979016,0.00041497,2]
[406802127,1772203866646,-300.0,0.00041497,2]
[406802128,1772203866661,-371.72919772,0.00041497,2]
[406802129,1772203866677,-300.0,0.00041497,2]
[406802130,1772203866692,-300.0,0.00041497,2]
[406802131,1772203866707,-519.04834756,0.00041497,2]
[406802132,1772203866723,-306.51036434,0.00041497,2]
[406802133,1772203866739,-300.0,0.00041497,2]
[406802134,1772203866754,-300.0,0.00041497,2]
[406802135,1772203866769,-1083.06069021,0.00041497,2]
[406802136,1772203866785,-856.45675791,0.00041497,2]
[406802137,1772203866800,-306.29679311,0.00041497,2]
[406802138,1772203866816,-852.28136836,0.00041497,2]
[406802139,1772203866831,-307.55492962,0.00041497,2]
[406802140,1772203866853,-300.0,0.00041497,2]
[406802141,1772203866869,-459.19979016,0.00041497,2]
[406802142,1772203866884,-371.8008923,0.00041497,2]
[406802143,1772203866899,-371.72919772,0.00041497,2]
[406802144,1772203866916,-300.0,0.00041497,2]
[406802145,1772203866931,-300.0,0.00041497,2]
[406802146,1772203866946,-519.04834756,0.00041497,2]
[406802147,1772203866962,-306.51036434,0.00041497,2]
[406802148,1772203866977,-567.00514336,0.00041497,2]
[406802149,1772203866992,-300.0,0.00041497,2]
[406802150,1772203867007,-1083.06069021,0.00041497,2]
[406802151,1772203867023,-856.45675791,0.00041497,2]
[406802152,1772203867038,-306.29679311,0.00041497,2]
[406802153,1772203867053,-852.28136836,0.00041497,2]
[406802154,1772203867218,-307.55492962,0.00041497,2]
[406802155,1772203867231,-300.0,0.00041497,2]
[406802156,1772203867240,-459.19979016,0.00041497,2]
[406802157,1772203867249,-371.72919772,0.00041497,2]
[406802158,1772203867259,-464.4346717,0.00041497,2]
[406802159,1772203867268,-300.0,0.00041497,2]
[406802160,1772203867277,-519.04834756,0.00041497,2]
[406802161,1772203867286,-306.51036434,0.00041497,2]
[406802162,1772203867297,-300.0,0.00041497,2]
[406802163,1772203867306,-1083.06069021,0.00041497,2]
[406802164,1772203867315,-68369.68387461,0.000415,120]
[406802165,1772203867324,-22500.0,0.000415,120]
[406802166,1772203867333,-22500.0,0.000415,120]
[406802167,1772203867343,-3930.76,0.000415,120]
[406802168,1772203867352,-12500.0,0.000415,120]
[406802169,1772203867363,-15000.0,0.000415,120]
[406802170,1772203867372,-509.0,0.00041526,25]
[406802171,1772203867382,-161.68352318,0.00041542,30]
[406802172,1772203867391,-293.08929833,0.00041542,30]
[406802173,1772203867400,-150.0,0.00041547,30]
[406802174,1772203867412,-150.0,0.00041558,30]
[406802175,1772203867425,-1040.2,0.00041563,30]
[406802176,1772203867435,-150.0,0.00041576,30]
[406802177,1772203867446,-150.0,0.00041576,30]
[406802178,1772203867458,-161.68352318,0.00041589,30]
[406802179,1772203867468,-293.08929833,0.00041589,30]
[406802180,1772203867477,-150.0,0.00041598,30]
[406802181,1772203867488,-156.0,0.000416,120]
[406802182,1772203867498,-2382.62,0.000416,14]
[406802183,1772203867508,-4068.84,0.000416,14]
[406802184,1772203867517,-150.0,0.0004162,30]
[406802185,1772203867527,-161.68352318,0.00041635,30]
[406802186,1772203867536,-293.08929833,0.00041635,30]
[406802187,1772203867546,-2000.0,0.00041643,120]
[406802188,1772203867555,-2000.0,0.00041643,120]
[406802189,1772203867564,-9208.96,0.00041643,3]
[406802190,1772203867573,-632.72,0.00041643,3]
[406802191,1772203867583,-844.0,0.00041644,120]
[406802192,1772203867592,-250.0,0.00041644,10]
[406802193,1772203867601,-150.0,0.00041649,30]
[406802194,1772203867610,-150.0,0.00041654,30]
[406802195,1772203867619,-150.0,0.00041657,30]
[406802196,1772203867628,-150.0,0.00041657,30]
[406802197,1772203867637,-822.0,0.00041674,11]
[406802198,1772203867647,-161.68352318,0.00041682,30]
[406802199,1772203867656,-293.08929833,0.00041682,30]
[406802200,1772203867666,-150.0,0.00041682,30]
[406802201,1772203867676,-150.0,0.00041688,30]
[406802202,1772203867686,-455.69291,0.00041688,30]
[406802203,1772203867695,-500.0,0.00041699,120]
[406802204,1772203867705,-150.0,0.000417,30]
[406802205,1772203867715,-161.68352318,0.00041728,30]
[406802206,1772203867724,-293.08929833,0.00041728,30]
[406802207,1772203867733,-150.0,0.00041738,30]
[406802208,1772203867742,-150.0,0.00041738,30]
[406802209,1772203867751,-150.0,0.00041738,30]
[406802210,1772203867760,-150.0,0.00041738,30]
[406802211,1772203867770,-150.0,0.00041745,30]
[406802212,1772203867779,-150.0,0.00041752,30]
[406802213,1772203867788,-161.68352318,0.00041775,30]
[406802214,1772203867798,-293.08929833,0.00041775,30]
[406802215,1772203867809,-500.0,0.00041799,120]
[406802216,1772203867819,-359.29159036,0.00041799,45]
[406802217,1772203867828,-500.0,0.00041799,120]
[406802218,1772203867838,-500.0,0.00041799,120]
[406802219,1772203867847,-8008.32,0.00041799,120]
[406802220,1772203867856,-8305.18631233,0.000418,2]
[406802221,1772203867866,-1000.0,0.000418,120]
[406802222,1772203867875,-6280.76,0.000418,120]
[406802223,1772203867885,-2000.0,0.000418,4]
[406802224,1772203867894,-10023.6952,0.000418,4]
[406802225,1772203867904,-384.6191,0.000418,120]
[406802226,1772203867914,-15000.0,0.000418,120]
[406802227,1772203867924,-150.0,0.00041803,30]
[406802228,1772203867933,-150.0,0.00041807,30]
[406802229,1772203867943,-150.0,0.00041813,30]
[406802230,1772203867952,-150.0,0.00041819,30]
[406802231,1772203867962,-150.0,0.00041819,30]
[406802232,1772203867971,-161.68352318,0.00041821,30]
[406802233,1772203867980,-293.08929833,0.00041821,30]
[406802234,1772203867989,-1133.69594791,0.00041836,14]
[406802235,1772203867998,-150.0,0.00041854,30]
[406802236,1772203868007,-161.68352318,0.00041868,30]
[406802237,1772203868016,-293.08929833,0.00041868,30]
[406802238,1772203868026,-150.0,0.00041869,30]
[406802239,1772203868035,-400.0,0.0004187,3]
[406802240,1772203868044,-22500.0,0.00041875,120]
[406802241,1772203868054,-12500.0,0.00041875,120]
[406802242,1772203868063,-308.0,0.00041877,120]
[406802243,1772203868072,-150.0,0.0004188,30]
[406802244,1772203868081,-455.69291,0.00041888,30]
[406802245,1772203868091,-2000.0,0.00041888,120]
[406802246,1772203868100,-500.0,0.00041899,30]
[406802247,1772203868110,-500.0,0.00041899,30]
[406802248,1772203868120,-500.0,0.00041899,120]
[406802249,1772203868129,-500.0,0.00041899,120]
[406802250,1772203868138,-150.0,0.000419,30]
[406802251,1772203868148,-150.0,0.000419,30]
[406802252,1772203868157,-1000.0,0.000419,120]
[406802253,1772203868167,-1500.0,0.000419,120]
[406802254,1772203868176,-724.71,0.000419,14]
[406802255,1772203868185,-2000.0,0.000419,120]
[406802256,1772203868195,-40002.86586661,0.000419,14]
[406802257,1772203868203,-303.0,0.000419,30]
[406802258,1772203868212,-435.0,0.000419,30]
[406802259,1772203868222,-800.0,0.000419,30]
[406802260,1772203868231,-433.0,0.000419,30]
[406802261,1772203868240,-150.0,0.00041905,30]
[406802262,1772203868249,-161.68352318,0.00041915,30]
[406802263,1772203868258,-293.08929833,0.00041915,30]
[406802264,1772203868267,-9208.96,0.00041917,3]
[406802265,1772203868277,-632.72,0.00041917,3]
[406802266,1772203868286,-844.0,0.00041918,120]
[406802267,1772203868296,-600.0,0.00041918,10]
[406802268,1772203868305,-150.0,0.00041932,30]
[406802269,1772203868314,-150.0,0.00041956,30]
[406802270,1772203868323,-161.68352318,0.00041961,30]
[406802271,1772203868332,-293.08929833,0.00041961,30]
[406802272,1772203868342,-150.0,0.00041972,30]
[406802273,1772203868351,-150.0,0.00041981,30]
[406802274,1772203868360,-150.0,0.00041981,30]
[406802275,1772203868369,-150.0,0.00041981,30]
[406802276,1772203868378,-150.0,0.00041981,30]
[406802277,1772203868387,-171.0,0.00041983,120]